Cogmind - Beta 16 @@@ ROGUE MODE // 2025.11.12 @ 22:03:42 Player: Darcyisverycute Result: Destroyed by D-53 Grenadier with Mini Grenade Launcher Performance ------------- Evolutions (0) 0 Regions Visited (2) 400 Robots Destroyed (37) 185 Value Destroyed (652) 652 Prototype IDs (0) 0 Alien Tech Used (0) 0 Bonus (0) 0 TOTAL SCORE: 1237 Bonus ------- None Cogmind --------- Core Integrity 0/250 Matter 262/300 Energy 88/100 System Corruption 0% Temperature Cool (0) Movement Rolling (175) Ox5 Location -10/Mines Parts ------- > --- POWER (1) -------- (None) > --- PROPULSION (2) --- Aluminum Leg Compact Wheel > --- UTILITY (2) ------ Huge Storage Unit > --- WEAPON (2) ------- Light Assault Rifle > --- INVENTORY (25) --- Light Ion Engine Aluminum Leg Flight Unit Flight Unit Flight Unit Flight Unit Medium Storage Unit Large Storage Unit High-capacity Storage Unit Large Matter Pod (0) Improved Terrain Scanner Seismic Detector Transport Network Coupler Light Armor Plating Hacking Suite Small Laser Light Assault Rifle Grenade Launcher Grenade Launcher Datajack Mining Laser Mining Claw Mining Claw Peak State ------------ > --- POWER ------------ Ion Engine > --- PROPULSION ------- Light Treads Light Treads > --- UTILITY ---------- Huge Storage Unit Improved Terrain Scanner > --- WEAPON ----------- Light Assault Rifle Mining Claw > --- INVENTORY -------- Light Ion Engine Flight Unit Flight Unit Flight Unit Flight Unit Medium Storage Unit Large Storage Unit High-capacity Storage Unit Seismic Detector Seismic Detector Transport Network Coupler Hacking Suite Small Laser Light Assault Rifle Light Assault Rifle Grenade Launcher Datajack Mining Laser [Rating: 11] Favorites ----------- Power Ion Engine Engine Ion Engine Propulsion Light Treads Treads Light Treads Leg Aluminum Leg Wheel Compact Wheel Utility Seismic Detector Device Seismic Detector Storage Huge Storage Unit Protection Light Armor Plating Weapon Assault Rifle Energy Gun Small Laser Ballistic Gun Assault Rifle Special Weapon Mining Laser Slashing Weapon Mining Claw Build | -11 -10 -10 ------- Run | Yrd Mat Min Slots Evolved . | . . . Power . | . . . Propulsion . | . . . Utility . | . . . Weapon . | . . . Parts Attached 21 | 8 10 3 Power 1 | 1 . . Engine 1 | 1 . . Core . | . . . Reactor . | . . . Propulsion 5 | 2 1 2 Treads 3 | 2 1 . Leg 1 | . . 1 Wheel 1 | . . 1 Hover . | . . . Flight . | . . . Utility 6 | 3 3 . Device 3 | 2 1 . Storage 2 | 1 1 . Processor . | . . . Hackware . | . . . Protection 1 | . 1 . Artifact . | . . . Weapon 9 | 2 6 1 Energy Gun 1 | . 1 . Energy Cannon . | . . . Ballistic Gun 6 | 2 3 1 Ballistic Cannon . | . . . Launcher . | . . . Special Weapon 1 | . 1 . Impact Weapon . | . . . Slashing Weapon 1 | . 1 . Piercing Weapon . | . . . Special Melee Weapon . | . . . Unidentified Prototypes . | . . . Parts Lost 9 | . 4 5 Power 1 | . . 1 Propulsion 3 | . 1 2 Utility 1 | . . 1 Weapon 4 | . 3 1 Highest Loss Streak 3 | . 1 3 To Critical Strikes . | . . . Average Backups 9 | 3 8 22 Power . | . . 1 Propulsion 1 | . 1 4 Utility 3 | 1 3 9 Weapon 2 | . 2 7 Tool/Special . | . . . Unused Backups 19 | . 2 17 Power 2 | . 1 1 Propulsion 6 | . 1 5 Utility 7 | . . 7 Weapon 3 | . . 3 Tool/Special 1 | . . 1 Average Slot Usage (%) 95 | . 95 95 Engine 13 | . 14 13 Treads 24 | . 25 14 Device 15 | . 16 2 Storage 9 | . 9 14 Protection 1 | . . 11 Energy Gun 1 | . 1 . Ballistic Gun 20 | . 19 27 Special Weapon 3 | . 4 . Slashing Weapon 2 | . 2 . Peak Build Rating 11 | 9 11 9 Average Rating 8 | 7 8 8 On Entrance 6 | . 9 9 Avg Prop Armor Cover (%) 6 | . . 6 Naked Turns . | . . . Heaviest Build 90 | 15 90 90 Greatest Support 40 | 40 40 40 Greatest Overweight (x) 8 | . 4 8 Average Overweight (x) 1 | . 1 3 Largest Inventory Capacity 25 | 8 25 25 Average Capacity 17 | 5 18 25 Most Carried 23 | 5 23 23 Average Carried 9 | 3 8 22 Final Capacity 25 | 5 25 25 Final Carried 23 | 5 23 23 Class Distribution -------------------- 100% | Mutant Dominant Class ---------------- Mutant | -10/Materials Mutant | -10/Mines Resources | -11 -10 -10 ----------- Run | Yrd Mat Min Matter Collected 1062 | 382 601 79 Remotely . | . . . Salvage Created 1125 | 304 777 44 Parts 88 | 29 57 2 Haulers Intercepted 2 | . 2 . Recyclers Shooed 2 | 2 . . Parts Field Recycled . | . . . Retrieved Matter . | . . . Parts Self-Destructed . | . . . Prevented . | . . . Parts Restored . | . . . Kills | -11 -10 -10 ------- Run | Yrd Mat Min Combat Hostiles Destroyed 20 | . 19 1 Guns 20 | . 19 1 Classes Destroyed 8 | 3 5 . Worker 1 | 1 . . Tunneler 9 | 9 . . Hauler 2 | . 2 . Recycler 2 | 1 1 . Operator 2 | . 2 . Watcher 1 | . 1 . Swarmer 8 | . 8 . Grunt 12 | . 11 1 Best Kill Streak 5 | 3 5 1 Combat Bots Only 5 | . 5 1 Max Kills in Single Turn 1 | 1 1 1 Gunslinging . | . . . Exploded . | . . . Melee . | . . . Uniques/NPCs Destroyed . | . . . Combat | -11 -10 -10 -------- Run | Yrd Mat Min Hostile Shots Fired 133 | . 110 23 Missed 27 | . 25 2 Hits 106 | . 85 21 Projectile 106 | . 85 21 AOE 8 | . . 8 Critical Strikes 1 | . . 1 Damage Taken 1380 | . 877 503 Core 254 | . 135 119 Absorbed by Shields . | . . . Core Remaining (%) 100 | 100 . . Volleys Fired 138 | 24 94 20 Largest 2 | 2 2 2 Hottest 100 | 40 100 100 Shots Fired 237 | 48 165 24 Gun 219 | 48 148 23 Cannon . | . . . Launcher . | . . . Special 18 | . 17 1 Kinetic 213 | 48 142 23 Thermal 24 | . 23 1 Explosive . | . . . Electromagnetic . | . . . Robot Hit Streak 12 | 12 11 8 Robot Miss Streak 3 | 3 3 2 Penetration Max . | . . . Secondary Targets 2 | . 2 . Max Gunslinging Chain 1 | . 1 . Shots Hit Robots 143 | 29 99 15 Core Hits 56 | 12 40 4 Critical Kills 1 | 1 . . Critical Parts Destroyed 1 | . 1 . Critical Strikes 2 | 1 1 . Destroy 2 | 1 1 . Melee Attacks 7 | . 7 . Impact . | . . . Slashing 7 | . 7 . Piercing . | . . . Sneak Attacks 1 | . 1 . Combat Hostiles . | . . . Follow-up Attacks . | . . . Damage Inflicted 1794 | 404 1267 123 Guns 1714 | 404 1187 123 Cannons . | . . . Explosions . | . . . Melee 80 | . 80 . Ramming . | . . . Kinetic 1682 | 404 1155 123 Thermal 32 | . 32 . Explosive . | . . . Electromagnetic . | . . . Impact . | . . . Slashing 80 | . 80 . Piercing . | . . . Highest Corruption . | . . . Average Corruption . | . . . Corruption Purged . | . . . Corruption Blocked . | . . . Overload Shots . | . . . Overflow Damage 27 | . 27 . Projectiles . | . . . Explosions . | . . . Melee 27 | . 27 . Knockbacks . | . . . Impact . | . . . Kinetic . | . . . Secondary . | . . . Self-Inflicted Damage . | . . . Shots . | . . . Rammed . | . . . Targets Rammed . | . . . Kicked . | . . . Crushed . | . . . Highest Temperature 80 | . 80 36 Average Temperature 20 | . 23 9 Received Heat Transfer 492 | . 345 147 Siege Activations . | . . . Martial Activations . | . . . Shielding Activations . | . . . Robots Disrupted . | . . . Combat Hostiles . | . . . Robots Corrupted . | . . . Combat Hostiles . | . . . Parts Fried . | . . . Impact Corruptions . | . . . Robots Melted . | . . . Combat Hostiles . | . . . Parts Melted 2 | . 2 . Heat Transferred 75 | . 75 . Parts Sabotaged . | . . . Parts Stolen . | . . . Parts Stripped . | . . . Power Chain Reactions . | . . . Alert | -11 -10 -10 ------- Run | Yrd Mat Min Maximum Alert Level . | . . . Low Security (%) 100 | 100 100 100 Level 1 . | . . . Level 2 . | . . . Level 3 . | . . . Level 4 . | . . . Level 5 . | . . . High Security . | . . . Max Security . | . . . Peak Influence 171 | 15 171 39 Initial 39 | . . 39 Average 62 | 1 77 18 Influence Increases 731 | 55 630 46 Destroy 0b10 Robot/C 400 | . 380 20 Destroy 0b10 Robot/NC 85 | 55 30 . Destroy Leader 96 | . 86 10 Successful Hack 12 | . 12 . Select Force Hacks 60 | . 60 . Disable Machine 15 | . 15 . Destroy Structure 18 | . 17 1 Lose Combat Pursuer 45 | . 30 15 Influence Decreases 731 | 55 527 149 Entered New Map 64 | . . 64 Time Decay 612 | 55 487 70 Lost Part 55 | . 40 15 Squads Dispatched 5 | . 5 . Investigation 2 | . 2 . Extermination . | . . . Reinforcement 3 | . 3 . Assault . | . . . Garrison . | . . . Intercept . | . . . Searches Triggered . | . . . Construction Impeded . | . . . Haulers Reinforced . | . . . Active Scanning Responses . | . . . Cargo Convoy Interrupts . | . . . Stealth | -11 -10 -10 --------- Run | Yrd Mat Min Distress Signals 1 | . 1 . Communications Jammed . | . . . Distress Signals . | . . . Times Spotted 36 | . 32 4 Peak Tracking Total 5 | . 5 2 Tactical Retreats 3 | . 2 1 Traps | -11 -10 -10 ------- Run | Yrd Mat Min Traps Triggered . | . . . Indirectly . | . . . Trap Hack Attempts . | . . . Triggered . | . . . Disarmed . | . . . Reprogrammed . | . . . Reused . | . . . Traps Extracted . | . . . Installed . | . . . Triggered . | . . . Machines | -11 -10 -10 ---------- Run | Yrd Mat Min Machines Disabled 1 | . 1 . Max in Single Turn 1 | . 1 . Machines Repaired . | . . . Machines Dismantled . | . . . Machines Sabotaged . | . . . Overloaded Fab Kills . | . . . Hacking | -11 -10 -10 --------- Run | Yrd Mat Min Machines Accessed 9 | . 9 . Terminals 7 | . 7 . Fabricators . | . . . Repair Stations . | . . . Recycling Units 2 | . 2 . Scanalyzers . | . . . Garrison Access . | . . . Total Hacks 18 | . 18 . Successful 11 | . 11 . Failed 7 | . 7 . Catastrophic . | . . . Database Lockouts . | . . . Manual 18 | . 18 . Terminals 16 | . 16 . Fabricators . | . . . Repair Stations . | . . . Recycling Units 2 | . 2 . Scanalyzers . | . . . Garrison Access . | . . . Terminal Hacks 1 | . 1 . Part Schematic 1 | . 1 . Fabricator Hacks . | . . . Repair Station Hacks . | . . . Recycling Unit Hacks . | . . . Scanalyzer . | . . . Garrison Access Hacks . | . . . Unauthorized Hacks 10 | . 10 . Terminals 8 | . 8 . Botnet 1 | . 1 . Operators 1 | . 1 . Skim 6 | . 6 . Fabricators . | . . . Repair Stations . | . . . Recycling Units 2 | . 2 . Tunnel 2 | . 2 . Scanalyzers . | . . . Garrison Access . | . . . Data Cores Recovered . | . . . Used . | . . . Hacking Detections 7 | . 7 . Full Trace Events . | . . . Feedback Events . | . . . Feedback Blocked . | . . . Robot Schematics Acquired . | . . . Robots Built . | . . . Authchips . | . . . Time . | . . . Total Robot Build Rating . | . . . Part Schematics Acquired 1 | . 1 . Parts Built . | . . . Authchips . | . . . Time . | . . . Total Part Build Rating . | . . . Part Studies Acquired . | . . . Parts Repaired . | . . . Time . | . . . Parts Recycled . | . . . Recycled Matter . | . . . Retrieved Matter . | . . . Retrieved Components . | . . . Parts Scanalyzed . | . . . Part Schematics Acquired . | . . . Parts Damaged . | . . . Bothacking | -11 -10 -10 ------------ Run | Yrd Mat Min Used RIF Installer . | . . . Robots Hacked . | . . . Non-combat . | . . . Combat . | . . . Robot Hacks Applied . | . . . Relay Couplers Released . | . . . Fabnet Peak Effective % . | . . . Robots Rewired . | . . . Allies Hacked . | . . . Hacks Repelled . | . . . Allies | -11 -10 -10 -------- Run | Yrd Mat Min Total Allies . | . . . Largest Group . | . . . Highest-Rated Group . | . . . Highest-Rated Ally . | . . . Total Orders . | . . . Ally Attacks . | . . . Total Damage . | . . . Kills . | . . . Allies Corrupted . | . . . Allies Melted . | . . . Intel | -11 -10 -10 ------- Run | Yrd Mat Min Active Infowar (turns) 2205 | 250 1926 29 Terrain 1291 | 209 1082 . Seismic 1662 | 250 1383 29 Robot Analysis Total . | . . . Derelict Logs Recovered . | . . . Drone Launches . | . . . Drone Recoveries . | . . . Exploration | -11 -10 -10 ------------- Run | Yrd Mat Min Turns Passed 2569 | 352 2035 182 Spaces Moved 819 | 164 613 42 Core 6 | 6 . . Treads 791 | 158 613 20 Legs 4 | . . 4 Wheels 18 | . . 18 Hover . | . . . Flight . | . . . Fastest Speed 50 | 50 160 175 Average Speed 241 | 155 261 292 Slowest Speed 680 | 160 480 680 Overloaded Moves . | . . . Propulsion Burnouts . | . . . Robots Hopped . | . . . Potential Cave-ins . | . . . Cave-ins Triggered . | . . . Exploration Rate (%) 38 | 9 90 15 Regions Visited 2 Branch Regions 1 Pre-discovered Areas 6 | . 6 . Known Exits Taken . | . . . Unknown Exits Taken 2 | 1 1 . Scrap Searched 1 | . . 1 Spaces Dug 14 | . 13 1 Terrain Destroyed 19 | . 18 1 Melee 5 | . 5 . Projectile 14 | . 13 1 AOE . | . . . Terrain Rammed . | . . . Walls Destroyed . | . . . Machines Disabled . | . . . Actions | -11 -10 -10 --------- Run | Yrd Mat Min Total 1124 | 210 835 79 Wait 77 | 4 62 11 Move 817 | 163 612 42 Hop . | . . . Pick Up 34 | 7 26 1 Fast Attach 14 | 8 5 1 Attach 6 | . 5 1 Detach 2 | 1 1 . Swap 17 | . 14 3 Drop 12 | 3 9 . Fire 138 | 24 94 20 Melee 7 | . 7 . Ram . | . . . Kick . | . . . Crush . | . . . Escape Stasis . | . . . Rewire . | . . . Trap . | . . . Miscellaneous . | . . . Route ------- -11/Scrapyard -10/Materials (discovered 5 exits: *Mat x3 / [*Min] / [Sub]) -10/Mines (discovered 2 exits: *Mat x2) History --------- Turn | Location | Event 11 | -11/Scrapyard | Discovered new exit (range 15) 353 | -11/Scrapyard | Entered Materials 354 | -10/Materials | Build established: Mutant 368 | -10/Materials | Discovered new exit (range 16) 721 | -10/Materials | Discovered new exit (range 13) 1120 | -10/Materials | Discovered new exit (range 8) 1197 | -10/Materials | Discovered new exit (range 6) 1673 | -10/Materials | Discovered new exit (range 11) 1801 | -10/Materials | Learned location of Mines (-9) 1837 | -10/Materials | Core integrity fell below 50% 1869 | -10/Materials | Identified exit to Materials 2008 | -10/Materials | Learned location of Recycling (-8) 2034 | -10/Materials | Learned Storage emergency access door positions 2110 | -10/Materials | Learned 4 Materials zone layouts 2164 | -10/Materials | Learned location of Mines (-8) 2388 | -10/Materials | Entered Mines 2555 | -10/Mines | Assembled infested the area 2560 | -10/Mines | Assisted by a Guerilla fighting off Assembled 2567 | -10/Mines | Core integrity fell below 20% 2570 | -10/Mines | Destroyed by D-53 Grenadier with Mini Grenade Launcher Last Messages --------------- 02398_ Found Sml. Storage Unit. 02398_ Found 35 Matter. 02399_ Acquired 35 matter. 02467_ Lgt. Treads destroyed. 02489_ Critical hit (Burn: +37). 02489_ G-47 Trooper destroyed. 02493_ Acquired 44 matter. 02497_ Acquired Aluminum Leg. 02555_ ALERT: Infestation in the mines, dispatching Demolisher response squad. 02560_ A derelict emerges from the shadows: "You need to get out of here! I've been tracking a group of Assembled to figure out where they're coming from, and they're closing on this area, come on!" 02563_ WG-XZI(h) destroyed. 02564_ Ion Engine destroyed. 02566_ K-01 Serf destroyed. 02568_ Seismic Detector destroyed. 02570_ Lgt. Assault Rifle destroyed. Map ----- +----------------------------------------------------+ | | | | | | | | | | | | | | | | | | | ?????????????????????????????????????????????????? | | ####??????????????????##############?????????????? | | # #################??# #?????????????? | | ! #??# #?????????????? | | ########### ## #### < """ #?????????????? | | ##?????????# ## """ #?????????????? | | #??????????# ####### """ #?????????????? | | #?????????? #?????# #?????????????? | | ??????????###?????# #?????????????? | | # ????????????########### #######?????????????? | | ######???????????# ## #?????????????????? | | ?????????????????# #?????????????????? | | ?????????????????" % ###????????????????? | | ?????????????????" =dd ?????????????????? | | ?????????????????#X ##?????????????????? | | ?????????????????# #?????????????????? | | ?????????????????### @ #?????????????????? | | ???????????????????## * ##?????????????????? | | ????????????????????# #??????????????????? | | ????????????????????## ##??????????????????? | | ?????????????????????## # ??????????????????? | | ??????????????????????####### ##?????????????????? | | ????????????????????????????? #??????????????????? | | ????????????????????????????? #??????????????????? | | ????????????????????????????? ???????????????????? | | ????????????????????????????? ???????????????????? | | ????????????????????????????? ???????????????????? | | ?????????????????????????????#???????????????????? | | ?????????????????????????????????????????????????? | | ?????????????????????????????????????????????????? | | ?????????